[Event "55th Rubinstein Memorial-A 2019"]
[Site "Polanica-Zdroj"]
[Date "2019.08.24"]
[Round "8.24"]
[White "Czarniecka, Aleksandra"]
[Black "Bojczewski, Mateusz"]
[Result "1/2-1/2"]
[ECO "B17"]
[WhiteElo "2042"]
[BlackElo "1836"]
[Annotator "NA"]
[PlyCount "84"]
[EventDate "2019.08.17"]
[EventType "swiss"]
[EventCountry "POL"]
[SourceTitle "playchess.com"]
[Source "ChessBase"]
[SourceQuality "1"]
[TimeControl "40/5400+30:1800+30"]

1. e4 {[%emt 0:00:00]} c6 {[%emt 0:00:00]} 2. d4 {[%emt 0:00:00]} d5 {[%emt 0:00:00]} 3. Nc3 {[%emt 0:00:00]} dxe4 {[%emt 0:00:22]} 4. Nxe4 {[%emt 0:00:00]} Nd7 {[%emt 0:00:32]} 5. Nf3 {[%emt 0:00:28]} Ngf6 {[%emt 0:00:36]} 6. Ng3 {[%emt 0:01:06]} e6 {[%emt 0:01:08]} 7. Bd3 {[%emt 0:01:28]} c5 {[%emt 0:01:00]} 8. O-O {[%emt 0:02:33]} Be7 {[%emt 0:01:23]} 9. Qe2 {[%emt 0:04:16]} O-O {[%emt 0:01:03]} 10. Rd1 {[%emt 0:00:05]} cxd4 {[%emt 0:00:37]} 11. Nxd4 {[%emt 0:04:18]} Nc5 {[%emt 0:00:54]} 12. Bc4 {[%emt 0:09:35]} Qb6 {[%emt 0:22:11]} 13. c3 {[%emt 0:08:36]} a5 {[%emt 0:07:08]} 14. Bf4 {[%emt 0:04:09]} Bd7 {[%emt 0:04:23]} 15. Bb5 {[%emt 0:22:29]} Nd5 {[%emt 0:11:03]} 16. Bd2 {[%emt 0:02:56]} Bf6 {[%emt 0:07:32]} 17. Bxd7 {[%emt 0:04:57]} Bxd4 {[%emt 0:07:13]} 18. Bb5 {[%emt 0:07:20]} Bf6 {[%emt 0:03:41]} 19. Nh5 {[%emt 0:01:37]} Be7 {[%emt 0:06:22]} 20. c4 {[%emt 0:00:14]} Nf6 {[%emt 0:01:15]} 21. Ng3 {[%emt 0:01:48]} Rfd8 {[%emt 0:01:27]} 22. Bc3 {[%emt 0:00:27]} Qc7 {[%emt 0:02:39]} 23. Be5 {[%emt 0:01:12]} Qb6 {[%emt 0:00:26]} 24. b3 {[%emt 0:02:11]} Rxd1+ {[%emt 0:00:53]} 25. Rxd1 {[%emt 0:00:05]} Rd8 {[%emt 0:00:17]} 26. h3 {[%emt 0:03:29]} h6 {[%emt 0:01:06]} 27. Kh2 {[%emt 0:05:49]} Rxd1 {[%emt 0:05:40]} 28. Qxd1 {[%emt 0:00:01]} Nce4 {[%emt 0:02:05]} 29. Nxe4 {[%emt 0:03:31]} Nxe4 {[%emt 0:00:06]} 30. Qg4 {[%emt 0:00:52]} Nf6 {[%emt 0:01:18]} 31. Qf4 {[%emt 0:02:45]} Qc5 {[%emt 0:01:41]} 32. Qd4 {[%emt 0:00:09]} b6 {[%emt 0:02:36]} 33. Qxc5 {[%emt 0:00:43]} Bxc5 {[%emt 0:00:34]} 34. f3 {[%emt 0:00:06]} Kf8 {[%emt 0:00:45]} 35. g3 {[%emt 0:03:32]} Ke7 {[%emt 0:00:23]} 36. Kg2 {[%emt 0:00:05]} g6 {[%emt 0:00:23]} 37. Kf1 {[%emt 0:00:40]} Ne8 {[%emt 0:01:08]} 38. Ke2 {[%emt 0:03:27]} Nd6 {[%emt 0:00:16]} 39. Bc6 {[%emt 0:00:10]} f6 {[%emt 0:00:49]} 40. Bc3 {[%emt 0:00:00]} Nf5 {[%emt 0:00:00]} 41. g4 {[%emt 0:04:01]} Nd4+ {[%emt 0:00:32]} 42. Bxd4 {[%emt 0:00:09]} Bxd4 {[%emt 0:00:07]} 1/2-1/2

[Event "55th Rubinstein Memorial-A 2019"]
[Site "Polanica-Zdroj"]
[Date "2019.08.24"]
[Round "8.25"]
[White "Jedynak, January"]
[Black "Betkowski, Andrzej"]
[Result "0-1"]
[ECO "C18"]
[WhiteElo "1822"]
[BlackElo "2023"]
[Annotator "NA"]
[PlyCount "76"]
[EventDate "2019.08.17"]
[EventType "swiss"]
[EventCountry "POL"]
[SourceTitle "playchess.com"]
[Source "ChessBase"]
[SourceQuality "1"]
[TimeControl "40/5400+30:1800+30"]

1. e4 {[%emt 0:00:00]} e6 {[%emt 0:00:00]} 2. d4 {[%emt 0:00:00]} d5 {[%emt 0:00:00]} 3. Nc3 {[%emt 0:00:00]} Bb4 {[%emt 0:00:34]} 4. e5 {[%emt 0:00:15]} c5 {[%emt 0:00:46]} 5. a3 {[%emt 0:00:10]} Bxc3+ {[%emt 0:00:12]} 6. bxc3 {[%emt 0:00:07]} Ne7 {[%emt 0:00:41]} 7. Qg4 {[%emt 0:00:50]} Kf8 {[%emt 0:00:21]} 8. Qd1 {[%emt 0:08:12]} b6 {[%emt 0:07:24]} 9. a4 {[%emt 0:24:48]} Qc7 {[%emt 0:06:21]} 10. Ne2 {[%emt 0:16:15]} Ba6 {[%emt 0:08:59]} 11. Ba3 {[%emt 0:17:51]} Nd7 {[%emt 0:03:20]} 12. Nf4 {[%emt 0:19:21]} Bxf1 {[%emt 0:08:29]} 13. Kxf1 {[%emt 0:00:05]} Ng6 {[%emt 0:03:02]} 14. Nd3 {[%emt 0:01:18]} Kg8 {[%emt 0:02:24]} 15. h4 {[%emt 0:00:32]} h5 {[%emt 0:02:44]} 16. Rh3 {[%emt 0:00:43]} Rc8 {[%emt 0:02:53]} 17. Ne1 {[%emt 0:05:35]} Qd8 {[%emt 0:04:44]} 18. Nf3 {[%emt 0:01:59]} Ne7 {[%emt 0:04:38]} 19. Bc1 {[%emt 0:00:40]} Nf5 {[%emt 0:00:31]} 20. Bg5 {[%emt 0:00:31]} Qc7 {[%emt 0:04:03]} 21. Ne1 {[%emt 0:00:14]} cxd4 {[%emt 0:01:26]} 22. cxd4 {[%emt 0:00:08]} Qc4+ {[%emt 0:00:18]} 23. Rd3 {[%emt 0:01:01]} Nxd4 {[%emt 0:01:02]} 24. Raa3 {[%emt 0:00:24]} Nc5 {[%emt 0:02:28]} 25. Rac3 {[%emt 0:00:28]} Qa6 {[%emt 0:00:07]} 26. Kg1 {[%emt 0:00:40]} Nxd3 {[%emt 0:02:57]} 27. Qxd3 {[%emt 0:00:27]} Rc4 {[%emt 0:00:18]} 28. Rxc4 {[%emt 0:00:50]} Qxc4 {[%emt 0:00:06]} 29. Qa3 {[%emt 0:00:27]} Qe2 {[%emt 0:03:07]} 30. Nd3 {[%emt 0:00:20]} Qd1+ {[%emt 0:03:06]} 31. Kh2 {[%emt 0:00:13]} Ne2 {[%emt 0:00:03]} 32. Bf4 {[%emt 0:01:00]} Rh6 {[%emt 0:06:25]} 33. Qe7 {[%emt 0:00:33]} Qg1+ {[%emt 0:00:29]} 34. Kh3 {[%emt 0:00:06]} Qh1+ {[%emt 0:00:06]} 35. Bh2 {[%emt 0:00:08]} Rg6 {[%emt 0:02:10]} 36. Qe8+ {[%emt 0:00:32]} Kh7 {[%emt 0:00:07]} 37. g4 {[%emt 0:00:06]} Ng1+ {[%emt 0:00:26]} 38. Kg3 {[%emt 0:00:10]} Qf3# 0-1

[Event "55th Rubinstein Memorial-A 2019"]
[Site "Polanica-Zdroj"]
[Date "2019.08.24"]
[Round "8.26"]
[White "Majek, Kacper"]
[Black "Rak, Maciej"]
[Result "1-0"]
[ECO "E04"]
[WhiteElo "1984"]
[BlackElo "1779"]
[Annotator "NA"]
[PlyCount "109"]
[EventDate "2019.08.17"]
[EventType "swiss"]
[EventCountry "POL"]
[SourceTitle "playchess.com"]
[Source "ChessBase"]
[SourceQuality "1"]
[TimeControl "40/5400+30:1800+30"]

1. d4 {[%emt 0:09:31]} Nf6 {[%emt 0:00:12]} 2. c4 {[%emt 0:00:08]} e6 {[%emt 0:00:26]} 3. Nf3 {[%emt 0:00:04]} d5 {[%emt 0:00:44]} 4. g3 {[%emt 0:00:07]} dxc4 {[%emt 0:00:40]} 5. Bg2 {[%emt 0:00:16]} a6 {[%emt 0:00:28]} 6. a4 {[%emt 0:02:36]} c5 {[%emt 0:07:02]} 7. O-O {[%emt 0:02:43]} Nc6 {[%emt 0:02:53]} 8. dxc5 {[%emt 0:03:26]} Qxd1 {[%emt 0:01:54]} 9. Rxd1 {[%emt 0:00:53]} Bxc5 {[%emt 0:01:35]} 10. Nbd2 {[%emt 0:00:11]} Ke7 {[%emt 0:13:07]} 11. Nxc4 {[%emt 0:00:39]} Rd8 {[%emt 0:04:37]} 12. Rxd8 {[%emt 0:01:24]} Kxd8 {[%emt 0:01:22]} 13. Nfe5 {[%emt 0:07:33]} Nxe5 {[%emt 0:01:34]} 14. Nxe5 {[%emt 0:01:12]} Ke7 {[%emt 0:05:16]} 15. Bf4 {[%emt 0:11:46]} Nd5 {[%emt 0:11:23]} 16. Bd2 {[%emt 0:09:19]} f6 {[%emt 0:06:58]} 17. Nd3 {[%emt 0:05:52]} Bd6 {[%emt 0:01:52]} 18. e4 {[%emt 0:01:54]} Nb6 {[%emt 0:03:10]} 19. Bc3 {[%emt 0:08:24]} Rb8 {[%emt 0:08:05]} 20. f4 {[%emt 0:07:18]} Kf7 {[%emt 0:04:01]} 21. a5 {[%emt 0:01:22]} Nd7 {[%emt 0:02:27]} 22. e5 {[%emt 0:00:12]} Be7 {[%emt 0:00:27]} 23. Bd4 {[%emt 0:05:58]} b6 {[%emt 0:03:03]} 24. Rc1 {[%emt 0:02:06]} Bb7 {[%emt 0:05:01]} 25. Rc7 {[%emt 0:00:46]} Bxg2 {[%emt 0:00:12]} 26. Kxg2 {[%emt 0:00:28]} Ke8 {[%emt 0:01:39]} 27. f5 {[%emt 0:04:03]} exf5 {[%emt 0:05:40]} 28. e6 {[%emt 0:02:17]} Nf8 {[%emt 0:04:41]} 29. Bxb6 {[%emt 0:01:06]} Nxe6 {[%emt 0:02:15]} 30. Ra7 {[%emt 0:00:22]} Bd8 {[%emt 0:01:07]} 31. Bxd8 {[%emt 0:00:10]} Nxd8 {[%emt 0:01:04]} 32. b4 {[%emt 0:01:37]} Nc6 {[%emt 0:00:32]} 33. Rxg7 {[%emt 0:00:19]} Kf8 {[%emt 0:00:30]} 34. Rxh7 {[%emt 0:00:27]} Kg8 {[%emt 0:00:01]} 35. Rh4 {[%emt 0:00:15]} Kf7 {[%emt 0:00:57]} 36. Kf2 {[%emt 0:02:01]} Ne5 {[%emt 0:00:31]} 37. Ke2 {[%emt 0:00:48]} Kg6 {[%emt 0:00:31]} 38. Nc5 {[%emt 0:02:36]} Ra8 {[%emt 0:00:30]} 39. Rf4 {[%emt 0:01:28]} Kg5 {[%emt 0:00:31]} 40. Kd2 {[%emt 0:00:00]} Rd8+ {[%emt 0:00:00]} 41. Kc3 {[%emt 0:01:02]} Rd6 {[%emt 0:00:37]} 42. h3 {[%emt 0:04:25]} Nc6 {[%emt 0:06:04]} 43. Rh4 {[%emt 0:00:18]} Na7 {[%emt 0:01:20]} 44. Rh8 {[%emt 0:09:20]} Nb5+ {[%emt 0:01:00]} 45. Kc4 {[%emt 0:00:16]} Na3+ {[%emt 0:02:39]} 46. Kb3 {[%emt 0:00:45]} Nb1 {[%emt 0:00:17]} 47. b5 {[%emt 0:02:34]} axb5 {[%emt 0:04:31]} 48. a6 {[%emt 0:00:09]} Nd2+ {[%emt 0:00:14]} 49. Kb4 {[%emt 0:00:20]} Ne4 {[%emt 0:00:22]} 50. a7 {[%emt 0:00:38]} Rd4+ {[%emt 0:02:30]} 51. Kxb5 {[%emt 0:00:09]} Nc3+ {[%emt 0:01:36]} 52. Kc6 {[%emt 0:00:10]} Rd6+ {[%emt 0:00:11]} 53. Kxd6 {[%emt 0:00:28]} Nb5+ {[%emt 0:00:01]} 54. Ke6 {[%emt 0:00:10]} Nxa7 {[%emt 0:00:05]} 55. Rg8+ {[%emt 0:00:04]} 1-0

[Event "55th Rubinstein Memorial-A 2019"]
[Site "Polanica-Zdroj"]
[Date "2019.08.24"]
[Round "8.27"]
[White "Kopica, Paulina"]
[Black "Galant, Ireneusz"]
[Result "0-1"]
[ECO "B32"]
[WhiteElo "1932"]
[BlackElo "1774"]
[Annotator "NA"]
[PlyCount "76"]
[EventDate "2019.08.17"]
[EventType "swiss"]
[EventCountry "POL"]
[SourceTitle "playchess.com"]
[Source "ChessBase"]
[SourceQuality "1"]
[TimeControl "40/5400+30:1800+30"]

1. e4 {[%emt 0:00:00]} c5 {[%emt 0:00:00]} 2. Nf3 {[%emt 0:00:00]} Nc6 {[%emt 0:00:00]} 3. d4 {[%emt 0:00:00]} cxd4 {[%emt 0:00:01]} 4. Nxd4 {[%emt 0:00:00]} e5 {[%emt 0:00:17]} 5. Nb5 {[%emt 0:00:00]} a6 {[%emt 0:00:21]} 6. Nd6+ {[%emt 0:00:05]} Bxd6 {[%emt 0:00:08]} 7. Qxd6 {[%emt 0:00:04]} Qe7 {[%emt 0:00:29]} 8. Qd1 {[%emt 0:00:33]} Nf6 {[%emt 0:00:08]} 9. Nc3 {[%emt 0:00:17]} d6 {[%emt 0:00:55]} 10. Be3 {[%emt 0:01:04]} Be6 {[%emt 0:05:37]} 11. Qd2 {[%emt 0:02:16]} b5 {[%emt 0:08:45]} 12. Nd5 {[%emt 0:03:09]} Bxd5 {[%emt 0:01:26]} 13. exd5 {[%emt 0:00:05]} Nb8 {[%emt 0:00:24]} 14. a4 {[%emt 0:04:39]} bxa4 {[%emt 0:02:39]} 15. Bc4 {[%emt 0:05:38]} O-O {[%emt 0:05:07]} 16. O-O {[%emt 0:03:01]} Ne4 {[%emt 0:04:12]} 17. Qd3 {[%emt 0:03:35]} Nf6 {[%emt 0:07:26]} 18. Rxa4 {[%emt 0:02:46]} Qb7 {[%emt 0:07:23]} 19. b3 {[%emt 0:03:35]} Ng4 {[%emt 0:05:21]} 20. Bd2 {[%emt 0:10:02]} f5 {[%emt 0:05:22]} 21. Qe2 {[%emt 0:11:13]} Nf6 {[%emt 0:18:22]} 22. Bb4 {[%emt 0:11:04]} Ne8 {[%emt 0:06:36]} 23. Rfa1 {[%emt 0:04:17]} f4 {[%emt 0:02:33]} 24. f3 {[%emt 0:02:38]} Qb6+ {[%emt 0:02:35]} 25. Kf1 {[%emt 0:06:50]} Qb7 {[%emt 0:02:48]} 26. c3 {[%emt 0:07:30]} Kh8 {[%emt 0:07:09]} 27. Qd3 {[%emt 0:01:41]} g5 {[%emt 0:00:35]} 28. h3 {[%emt 0:03:13]} Qe7 {[%emt 0:04:02]} 29. Bxa6 {[%emt 0:04:39]} g4 {[%emt 0:00:01]} 30. Bc8 {[%emt 0:05:43]} Rxa4 {[%emt 0:01:01]} 31. bxa4 {[%emt 0:00:10]} gxf3 {[%emt 0:01:03]} 32. Qxf3 {[%emt 0:03:10]} e4 {[%emt 0:00:47]} 33. Re1 {[%emt 0:00:07]} e3 {[%emt 0:01:10]} 34. c4 {[%emt 0:01:25]} Qe5 {[%emt 0:00:48]} 35. Be6 {[%emt 0:01:58]} Nf6 {[%emt 0:00:24]} 36. Rc1 {[%emt 0:00:35]} Qb2 {[%emt 0:00:25]} 37. Ba3 {[%emt 0:00:53]} Qxa3 {[%emt 0:00:12]} 38. Rb1 {[%emt 0:00:08]} Qd3+ 0-1

[Event "55th Rubinstein Memorial-A 2019"]
[Site "Polanica-Zdroj"]
[Date "2019.08.25"]
[Round "9.1"]
[White "Warakomski, Tomasz"]
[Black "Mis, Mieszko"]
[Result "1/2-1/2"]
[ECO "B10"]
[WhiteElo "2497"]
[BlackElo "2296"]
[Annotator "ChessBase"]
[PlyCount "80"]
[EventDate "2019.08.17"]
[EventType "swiss"]
[EventCountry "POL"]
[SourceTitle "playchess.com"]
[Source "ChessBase"]
[SourceQuality "1"]
[TimeControl "40/5400+30:1800+30"]

1. e4 {[%emt 0:03:58]} c6 {[%emt 0:00:00]} 2. Nc3 {[%emt 0:01:08]} d5 {[%emt 0:00:00]} 3. Nf3 {[%emt 0:00:07]} dxe4 {[%emt 0:04:38]} 4. Nxe4 {[%emt 0:00:06]} Nd7 {[%emt 0:00:03]} 5. Bc4 {[%emt 0:11:38]} e6 {[%emt 0:06:41]} 6. d4 {[%emt 0:04:05]} Ngf6 {[%emt 0:02:20]} 7. Qe2 {[%emt 0:04:02]} Nxe4 {[%emt 0:04:32]} 8. Qxe4 {[%emt 0:00:05]} Nf6 {[%emt 0:00:04]} 9. Qe2 {[%emt 0:00:02]} Bd6 {[%emt 0:03:00]} 10. Ne5 {[%emt 0:08:03]} Qc7 {[%emt 0:04:22]} 11. f4 {[%emt 0:00:45]} b5 {[%emt 0:14:47]} 12. Bd3 {[%emt 0:02:09]} a6 {[%emt 0:00:41]} 13. Bd2 {[%emt 0:06:18]} c5 {[%emt 0:11:44]} 14. dxc5 {[%emt 0:02:18]} Qxc5 {[%emt 0:00:10]} 15. a4 {[%emt 0:17:43]} bxa4 {[%emt 0:15:15]} 16. Rxa4 {[%emt 0:00:11]} O-O {[%emt 0:01:35]} 17. Be3 {[%emt 0:05:22]} Qc7 {[%emt 0:03:00]} 18. O-O {[%emt 0:03:17]} Bb7 {[%emt 0:02:59]} 19. Rc4 {[%emt 0:05:50]} Qe7 {[%emt 0:00:40]} 20. Bd4 {[%emt 0:05:12]} Rfc8 {[%emt 0:07:14]} 21. Qe3 {[%emt 0:05:07]} h6 {[%emt 0:01:38]} 22. c3 {[%emt 0:02:09]} Rab8 {[%emt 0:02:48]} 23. Ra1 {[%emt 0:03:36]} Nd5 {[%emt 0:05:50]} 24. Qg3 {[%emt 0:01:26]} Nf6 {[%emt 0:00:38]} 25. Rxc8+ {[%emt 0:03:22]} Rxc8 {[%emt 0:00:06]} 26. Ng4 {[%emt 0:00:09]} Nxg4 {[%emt 0:01:54]} 27. Qxg4 {[%emt 0:00:01]} f5 {[%emt 0:00:48]} 28. Qe2 {[%emt 0:00:25]} Bxf4 {[%emt 0:02:33]} 29. Bxf5 {[%emt 0:01:00]} Re8 {[%emt 0:01:16]} 30. Be4 {[%emt 0:03:40]} Bxh2+ {[%emt 0:02:20]} 31. Kxh2 {[%emt 0:00:03]} Qh4+ {[%emt 0:00:02]} 32. Kg1 {[%emt 0:00:03]} Qxe4 {[%emt 0:01:21]} 33. Qxe4 {[%emt 0:00:04]} Bxe4 {[%emt 0:00:01]} 34. Rxa6 {[%emt 0:00:05]} e5 {[%emt 0:00:16]} 35. Be3 {[%emt 0:00:18]} Ra8 {[%emt 0:00:45]} 36. Rb6 {[%emt 0:02:20]} Ra1+ {[%emt 0:01:08]} 37. Kf2 {[%emt 0:00:04]} Rh1 {[%emt 0:00:30]} 38. Bc5 {[%emt 0:00:08]} Rh2 {[%emt 0:00:22]} 39. Bd6 {[%emt 0:00:00]} Rxg2+ {[%emt 0:00:00]} 40. Ke3 {[%emt 0:00:00]} Bd5 {[%emt 0:00:00] Ke4} 1/2-1/2

[Event "55th Rubinstein Memorial-A 2019"]
[Site "Polanica-Zdroj"]
[Date "2019.08.25"]
[Round "9.2"]
[White "Kozak, Antoni"]
[Black "Oglaza, Oskar"]
[Result "1/2-1/2"]
[ECO "E32"]
[WhiteElo "2354"]
[BlackElo "2367"]
[Annotator "NA"]
[PlyCount "60"]
[EventDate "2019.08.17"]
[EventType "swiss"]
[EventCountry "POL"]
[SourceTitle "playchess.com"]
[Source "ChessBase"]
[SourceQuality "1"]
[TimeControl "40/5400+30:1800+30"]

1. d4 {[%emt 0:00:00]} Nf6 {[%emt 0:00:00]} 2. c4 {[%emt 0:00:00]} e6 {[%emt 0:00:00]} 3. Nc3 {[%emt 0:02:18]} Bb4 {[%emt 0:00:00]} 4. Qc2 {[%emt 0:00:07]} O-O {[%emt 0:00:00]} 5. Bg5 {[%emt 0:00:55]} c5 {[%emt 0:05:59]} 6. dxc5 {[%emt 0:00:14]} Na6 {[%emt 0:00:04]} 7. a3 {[%emt 0:07:53]} Bxc3+ {[%emt 0:00:07]} 8. Qxc3 {[%emt 0:00:05]} Nxc5 {[%emt 0:00:03]} 9. Bxf6 {[%emt 0:00:26]} Qxf6 {[%emt 0:00:05]} 10. Qxf6 {[%emt 0:00:03]} gxf6 {[%emt 0:00:05]} 11. b4 {[%emt 0:00:04]} Na4 {[%emt 0:04:22]} 12. Nf3 {[%emt 0:12:58]} a5 {[%emt 0:09:45]} 13. e3 {[%emt 0:00:13]} b6 {[%emt 0:00:54]} 14. Be2 {[%emt 0:00:49]} Rd8 {[%emt 0:32:01]} 15. Kd2 Bb7 {[%emt 0:06:41]} 16. Kc2 {[%emt 0:09:38]} Rdc8 {[%emt 0:09:43]} 17. Nd4 {[%emt 0:07:30]} d5 {[%emt 0:20:39]} 18. Kb3 {[%emt 0:01:12]} axb4 {[%emt 0:00:03]} 19. axb4 {[%emt 0:00:05]} dxc4+ {[%emt 0:00:03]} 20. Bxc4 {[%emt 0:00:05]} Bd5 {[%emt 0:00:01]} 21. Bxd5 {[%emt 0:03:58]} Rc3+ {[%emt 0:00:03]} 22. Ka2 {[%emt 0:00:03]} exd5 {[%emt 0:00:11]} 23. Rhc1 {[%emt 0:02:49]} Rd3 {[%emt 0:00:28]} 24. Rc2 {[%emt 0:07:27]} Nc3+ {[%emt 0:01:39]} 25. Kb2 {[%emt 0:00:03]} Nd1+ {[%emt 0:00:16]} 26. Kb1 {[%emt 0:00:02]} Nc3+ {[%emt 0:00:26]} 27. Kb2 {[%emt 0:00:04]} Nd1+ {[%emt 0:00:08]} 28. Kb1 {[%emt 0:00:06]} Nc3+ {[%emt 0:00:06]} 29. Kb2 {[%emt 0:00:02]} Nd1+ {[%emt 0:00:06]} 30. Kb1 {[%emt 0:00:02]} Nc3+ {[%emt 0:00:05]} 1/2-1/2

[Event "55th Rubinstein Memorial-A 2019"]
[Site "Polanica-Zdroj"]
[Date "2019.08.25"]
[Round "9.3"]
[White "Psyk, Radoslaw"]
[Black "Goluch, Piotr"]
[Result "1/2-1/2"]
[ECO "B23"]
[WhiteElo "2326"]
[BlackElo "2418"]
[Annotator "NA"]
[PlyCount "145"]
[EventDate "2019.08.17"]
[EventType "swiss"]
[EventCountry "POL"]
[SourceTitle "playchess.com"]
[Source "ChessBase"]
[SourceQuality "1"]
[TimeControl "40/5400+30:1800+30"]

1. e4 {[%emt 0:01:18]} c5 {[%emt 0:00:00]} 2. Nc3 {[%emt 0:04:51]} Nc6 {[%emt 0:00:25]} 3. f4 {[%emt 0:00:56]} g6 {[%emt 0:00:05]} 4. Nf3 Bg7 {[%emt 0:00:03]} 5. Bb5 {[%emt 0:09:20]} Nd4 {[%emt 0:04:06]} 6. O-O {[%emt 0:05:26]} Nxb5 {[%emt 0:06:44]} 7. Nxb5 {[%emt 0:00:14]} d6 {[%emt 0:06:35]} 8. Qe1 {[%emt 0:01:33]} Nh6 {[%emt 0:07:56]} 9. d3 {[%emt 0:05:05]} f5 $11 {[%emt 0:07:49]} 10. Bd2 {[%emt 0:18:01]} O-O {[%emt 0:05:59]} 11. Bc3 {[%emt 0:03:12]} a6 {[%emt 0:00:26]} 12. Bxg7 {[%emt 0:00:20]} Kxg7 {[%emt 0:00:03]} 13. Nc3 {[%emt 0:00:56]} e6 {[%emt 0:00:17]} 14. Rd1 {[%emt 0:07:53]} Bd7 {[%emt 0:00:17]} 15. d4 {[%emt 0:00:59]} cxd4 {[%emt 0:02:16]} 16. Rxd4 {[%emt 0:02:12]} Qb6 {[%emt 0:02:14]} 17. Kh1 {[%emt 0:00:01]} Rad8 {[%emt 0:09:37]} 18. Qd2 {[%emt 0:02:04]} Nf7 {[%emt 0:00:51]} 19. b3 {[%emt 0:16:27]} Bc6 {[%emt 0:02:15]} 20. exf5 {[%emt 0:01:57]} gxf5 {[%emt 0:00:21]} 21. Rd3 {[%emt 0:00:13]} Kh8 {[%emt 0:05:02]} 22. Re1 {[%emt 0:01:09]} Rde8 {[%emt 0:02:26]} 23. Ng5 {[%emt 0:04:06]} Nxg5 {[%emt 0:11:01]} 24. fxg5 {[%emt 0:00:01]} d5 {[%emt 0:00:45]} 25. Rh3 {[%emt 0:01:41]} Rg8 {[%emt 0:04:41]} 26. Qf4 {[%emt 0:00:08]} Rg7 {[%emt 0:01:38]} 27. Rh6 {[%emt 0:03:24]} d4 {[%emt 0:05:15]} 28. Ne2 {[%emt 0:02:53]} e5 {[%emt 0:00:04]} 29. Qh4 {[%emt 0:00:01]} Qd8 {[%emt 0:06:18]} 30. Ng3 {[%emt 0:00:41]} Reg8 {[%emt 0:02:33]} 31. Rxe5 {[%emt 0:04:09]} Qxg5 {[%emt 0:00:04]} 32. Qxg5 {[%emt 0:02:46]} Rxg5 {[%emt 0:00:05]} 33. Rf6 {[%emt 0:00:04]} Be4 {[%emt 0:04:13]} 34. Rd6 {[%emt 0:00:29]} Bxc2 {[%emt 0:01:47]} 35. Rxd4 {[%emt 0:00:07]} R5g7 {[%emt 0:00:36]} 36. Rd2 {[%emt 0:01:03]} Rc7 {[%emt 0:00:08]} 37. Re1 {[%emt 0:01:19]} Be4 {[%emt 0:02:16]} 38. Nxe4 {[%emt 0:00:07]} fxe4 {[%emt 0:00:04]} 39. Kg1 {[%emt 0:00:19]} Re8 {[%emt 0:00:07]} 40. Rde2 {[%emt 0:00:00]} Rce7 {[%emt 0:00:00]} 41. Kf2 {[%emt 0:06:51]} Kg7 {[%emt 0:01:38]} 42. Ke3 {[%emt 0:00:39]} Rd8 {[%emt 0:00:11]} 43. Rc1 {[%emt 0:04:00]} Kg6 {[%emt 0:05:00]} 44. Rd2 {[%emt 0:02:02]} Rxd2 {[%emt 0:00:51]} 45. Kxd2 {[%emt 0:00:02]} Rd7+ {[%emt 0:00:27]} 46. Ke3 {[%emt 0:00:22]} Rd3+ {[%emt 0:00:02]} 47. Ke2 {[%emt 0:00:59]} Rd7 {[%emt 0:06:16]} 48. Rd1 {[%emt 0:05:41]} Rc7 {[%emt 0:00:50]} 49. Ke3 {[%emt 0:00:40]} Kf5 {[%emt 0:02:28]} 50. Rd5+ {[%emt 0:00:39]} Ke6 {[%emt 0:00:11]} 51. Rh5 {[%emt 0:00:36]} Rc2 {[%emt 0:00:35]} 52. g3 {[%emt 0:02:12]} Rxa2 {[%emt 0:00:34]} 53. Rxh7 {[%emt 0:00:26]} Rb2 {[%emt 0:02:40]} 54. Rxb7 {[%emt 0:00:34]} Rxh2 {[%emt 0:00:05]} 55. Rb6+ {[%emt 0:01:54]} Kd5 {[%emt 0:03:24]} 56. Rxa6 {[%emt 0:00:12]} Rg2 {[%emt 0:02:59]} 57. Ra5+ {[%emt 0:01:42]} Kd6 {[%emt 0:00:04]} 58. Rg5 {[%emt 0:01:45]} Rb2 {[%emt 0:00:26]} 59. Kxe4 {[%emt 0:01:54]} Rxb3 {[%emt 0:00:05]} 60. Kf5 {[%emt 0:00:05]} Ke7 {[%emt 0:00:20]} 61. Kg6 {[%emt 0:00:09]} Kf8 {[%emt 0:00:19]} 62. Kh7 {[%emt 0:00:16]} Rf3 {[%emt 0:01:13]} 63. Rg7 {[%emt 0:03:47]} Rf1 {[%emt 0:00:59]} 64. Ra7 {[%emt 0:01:33]} Rg1 {[%emt 0:02:48]} 65. Ra3 {[%emt 0:00:02]} Rh1+ {[%emt 0:00:05]} 66. Kg6 {[%emt 0:00:10]} Rg1 {[%emt 0:00:11]} 67. Kh7 {[%emt 0:05:13]} Rh1+ {[%emt 0:00:06]} 68. Kg6 {[%emt 0:00:03]} Rg1 {[%emt 0:00:04]} 69. Kf6 {[%emt 0:00:26]} Rf1+ {[%emt 0:00:11]} 70. Kg5 {[%emt 0:00:31]} Kg7 {[%emt 0:00:20]} 71. Ra7+ {[%emt 0:00:04]} Kg8 {[%emt 0:00:29]} 72. Kg6 {[%emt 0:00:14]} Rf8 {[%emt 0:00:14]} 73. Rg7+ {[%emt 0:00:04]} 1/2-1/2